[Event "Titled Tuesday Blitz April 18 Late 2023"]
[White "Rustemov, Alexander"]
[Black "Rastbod, Ali"]
[WhiteFideId "4119002"]
[BlackFideId "12567477"]
[WhiteElo "2860"]
[BlackElo "2248"]
[Result "1-0"]
[Round "05"]
[TimeControl "180+2"]
[Date "2023.04.18"]
[WhiteClock "0:00:08"]
[BlackClock "0:00:07"]

1. d4 {[%clk 0:02:55]}  Nf6 {[%clk 0:02:59]} 2. c4 {[%clk 0:02:54]}  e6 {[%clk 0:02:59]} 3. Nf3 {[%clk 0:02:54]}  Bb4+ {[%clk 0:02:56]} 4. Bd2 {[%clk 0:02:54]}  Qe7 {[%clk 0:02:56]} 5. g3 {[%clk 0:02:55]}  O-O {[%clk 0:02:57]} 6. Bg2 {[%clk 0:02:54]}  b6 {[%clk 0:02:56]} 7. O-O {[%clk 0:02:53]}  Bb7 {[%clk 0:02:56]} 8. Bf4 {[%clk 0:02:45]}  Bd6 {[%clk 0:02:51]} 9. Bxd6 {[%clk 0:02:39]}  cxd6 {[%clk 0:02:51]} 10. Nc3 {[%clk 0:02:31]}  Rc8 {[%clk 0:02:36]} 11. Qd3 {[%clk 0:02:22]}  Nc6 {[%clk 0:01:51]} 12. b3 {[%clk 0:02:15]}  d5 {[%clk 0:01:46]} 13. cxd5 {[%clk 0:02:02]}  Nb4 {[%clk 0:01:45]} 14. Qd2 {[%clk 0:01:58]}  Nbxd5 {[%clk 0:01:40]} 15. Nxd5 {[%clk 0:01:57]}  Bxd5 {[%clk 0:01:41]} 16. Rfc1 {[%clk 0:01:53]}  Qf8 {[%clk 0:01:36]} 17. Ne1 {[%clk 0:01:48]}  Bxg2 {[%clk 0:01:29]} 18. Kxg2 {[%clk 0:01:49]}  Qd6 {[%clk 0:01:21]} 19. Qd3 {[%clk 0:01:33]}  Nd5 {[%clk 0:01:12]} 20. e4 {[%clk 0:01:28]}  Nb4 {[%clk 0:01:11]} 21. Qd2 {[%clk 0:01:27]}  a5 {[%clk 0:00:56]} 22. Nf3 {[%clk 0:01:25]}  Rc6 {[%clk 0:00:46]} 23. Ne5 {[%clk 0:01:18]}  Rcc8 {[%clk 0:00:33]} 24. Nc4 {[%clk 0:01:13]}  Qb8 {[%clk 0:00:32]} 25. a3 {[%clk 0:01:09]}  Nc6 {[%clk 0:00:31]} 26. e5 {[%clk 0:01:06]}  Nd8 {[%clk 0:00:18]} 27. Nd6 {[%clk 0:01:06]}  Rxc1 {[%clk 0:00:18]} 28. Rxc1 {[%clk 0:01:06]}  Nb7 {[%clk 0:00:19]} 29. Nb5 {[%clk 0:00:57]}  d6 {[%clk 0:00:18]} 30. Qc3 {[%clk 0:00:56]}  dxe5 {[%clk 0:00:17]} 31. dxe5 {[%clk 0:00:56]}  Nc5 {[%clk 0:00:18]} 32. b4 {[%clk 0:00:52]}  axb4 {[%clk 0:00:19]} 33. axb4 {[%clk 0:00:53]}  Qb7+ {[%clk 0:00:19]} 34. Kg1 {[%clk 0:00:44]}  Ne4 {[%clk 0:00:19]} 35. Qf3 {[%clk 0:00:42]}  Nc5 {[%clk 0:00:10]} 36. Qxb7 {[%clk 0:00:39]}  Nxb7 {[%clk 0:00:10]} 37. Rc7 {[%clk 0:00:37]}  Nd8 {[%clk 0:00:09]} 38. Nd6 {[%clk 0:00:34]}  f6 {[%clk 0:00:06]} 39. exf6 {[%clk 0:00:32]}  gxf6 {[%clk 0:00:07]} 40. Ne4 {[%clk 0:00:30]}  Kf8 {[%clk 0:00:03]} 41. Nxf6 {[%clk 0:00:30]}  Ra1+ {[%clk 0:00:04]} 42. Kg2 {[%clk 0:00:30]}  h6 {[%clk 0:00:04]} 43. Nd7+ {[%clk 0:00:25]}  Ke8 {[%clk 0:00:04]} 44. Nxb6 {[%clk 0:00:25]}  Rb1 {[%clk 0:00:05]} 45. Rc4 {[%clk 0:00:24]}  Nb7 {[%clk 0:00:06]} 46. Na4 {[%clk 0:00:18]}  Nd6 {[%clk 0:00:06]} 47. Rh4 {[%clk 0:00:19]}  Nf5 {[%clk 0:00:06]} 48. Re4 {[%clk 0:00:17]}  Kf7 {[%clk 0:00:05]} 49. Nc5 {[%clk 0:00:18]}  Ng7 {[%clk 0:00:05]} 50. h4 {[%clk 0:00:17]}  h5 {[%clk 0:00:05]} 51. Nd3 {[%clk 0:00:15]}  Nf5 {[%clk 0:00:05]} 52. Nf4 {[%clk 0:00:14]}  Ng7 {[%clk 0:00:03]} 53. Re5 {[%clk 0:00:13]}  Kf6 {[%clk 0:00:02]} 54. Rb5 {[%clk 0:00:12]}  e5 {[%clk 0:00:02]} 55. Nd5+ {[%clk 0:00:13]}  Kf5 {[%clk 0:00:03]} 56. Ne3+ {[%clk 0:00:13]}  Ke4 {[%clk 0:00:03]} 57. Rb7 {[%clk 0:00:12]}  Ne6 {[%clk 0:00:03]} 58. Rh7 {[%clk 0:00:11]}  Nd4 {[%clk 0:00:03]} 59. Rxh5 {[%clk 0:00:11]}  Nf3 {[%clk 0:00:03]} 60. Rh8 {[%clk 0:00:11]}  Rg1+ {[%clk 0:00:03]} 61. Kh3 {[%clk 0:00:12]}  Rh1+ {[%clk 0:00:04]} 62. Kg4 {[%clk 0:00:12]}  Nh2+ {[%clk 0:00:04]} 63. Kg5 {[%clk 0:00:12]}  Nf3+ {[%clk 0:00:05]} 64. Kg6 {[%clk 0:00:11]}  Rc1 {[%clk 0:00:05]} 65. Ng4 {[%clk 0:00:08]}  Rc6+ {[%clk 0:00:05]} 66. Kf7 {[%clk 0:00:08]}  Kf5 {[%clk 0:00:04]} 67. Ne3+ {[%clk 0:00:07]}  Ke4 {[%clk 0:00:03]} 68. Rb8 {[%clk 0:00:07]}  Nd4 {[%clk 0:00:03]} 69. b5 {[%clk 0:00:07]}  Rh6 {[%clk 0:00:01]} 70. b6 {[%clk 0:00:06]}  Rh7+ {[%clk 0:00:02]} 71. Kg6 {[%clk 0:00:07]}  Rd7 {[%clk 0:00:02]} 72. b7 {[%clk 0:00:07]}  Nc6 {[%clk 0:00:03]} 73. Rf8 {[%clk 0:00:06]}  Ne7+ {[%clk 0:00:03]} 74. Kf6 {[%clk 0:00:05]}  Nc6 {[%clk 0:00:03]} 75. Rf7 {[%clk 0:00:04]}  Rxf7+ {[%clk 0:00:02]} 76. Kxf7 {[%clk 0:00:05]}  Nd8+ {[%clk 0:00:03]} 77. Kg7 {[%clk 0:00:04]}  Nxb7 {[%clk 0:00:04]} 78. h5 {[%clk 0:00:05]}  Nd6 {[%clk 0:00:05]} 79. h6 {[%clk 0:00:05]}  Nf5+ {[%clk 0:00:06]} 80. Kg6 {[%clk 0:00:06]}  Nxh6 {[%clk 0:00:04]} 81. Kxh6 {[%clk 0:00:06]}  Kf3 {[%clk 0:00:05]} 82. g4 {[%clk 0:00:06]}  e4 {[%clk 0:00:06]} 83. g5 {[%clk 0:00:06]}  Kxf2 {[%clk 0:00:06]} 84. Nd5 {[%clk 0:00:07]}  Kf3 {[%clk 0:00:06]} 85. g6 {[%clk 0:00:07]}  e3 {[%clk 0:00:07]} 86. Nxe3 {[%clk 0:00:07]}  Kxe3 {[%clk 0:00:07]} 87. g7 {[%clk 0:00:08]} 1-0


[Site "https://www.chess.com"]

[Event "Titled Tuesday Blitz April 18 Late 2023"]
[White "Smirnov, Pavel"]
[Black "Danielyan, Vahe"]
[WhiteFideId "4123425"]
[BlackFideId "13304828"]
[WhiteElo "2519"]
[BlackElo "2423"]
[Result "1-0"]
[Round "05"]
[TimeControl "180+2"]
[Date "2023.04.18"]
[WhiteClock "0:02:43"]
[BlackClock "0:02:53"]

1. d4 {[%clk 0:03:00]}  Nf6 {[%clk 0:02:57]} 2. c4 {[%clk 0:03:01]}  g6 {[%clk 0:02:58]} 3. g3 {[%clk 0:03:01]}  d5 {[%clk 0:02:56]} 4. Nf3 {[%clk 0:03:01]}  Bg7 {[%clk 0:02:56]} 5. Bg2 {[%clk 0:02:58]}  O-O {[%clk 0:02:56]} 6. cxd5 {[%clk 0:02:57]}  Nxd5 {[%clk 0:02:57]} 7. O-O {[%clk 0:02:58]}  Nc6 {[%clk 0:02:57]} 8. e4 {[%clk 0:02:58]}  Nb6 {[%clk 0:02:57]} 9. d5 {[%clk 0:02:58]}  Na5 {[%clk 0:02:57]} 10. Nc3 {[%clk 0:02:59]}  c6 {[%clk 0:02:57]} 11. Bf4 {[%clk 0:02:58]}  cxd5 {[%clk 0:02:57]} 12. Nxd5 {[%clk 0:02:54]}  Nxd5 {[%clk 0:02:56]} 13. exd5 {[%clk 0:02:54]}  Nc4 {[%clk 0:02:56]} 14. Qe2 {[%clk 0:02:44]}  Bg4 {[%clk 0:02:53]} 15. Qxc4 {[%clk 0:02:43]} 1-0


[Site "https://www.chess.com"]

[Event "Titled Tuesday Blitz April 18 Late 2023"]
[White "Sabuk, Piotr"]
[Black "Fier, Alexandr"]
[WhiteFideId "1137565"]
[BlackFideId "2107139"]
[WhiteElo "2298"]
[BlackElo "2610"]
[Result "1-0"]
[Round "05"]
[TimeControl "180+2"]
[Date "2023.04.18"]
[WhiteClock "0:00:17"]
[BlackClock "0:01:08"]

1. d4 {[%clk 0:03:00]}  Nf6 {[%clk 0:02:59]} 2. c4 {[%clk 0:03:01]}  c5 {[%clk 0:02:59]} 3. d5 {[%clk 0:03:01]}  e6 {[%clk 0:03:00]} 4. Nc3 {[%clk 0:03:00]}  exd5 {[%clk 0:03:00]} 5. cxd5 {[%clk 0:03:01]}  d6 {[%clk 0:03:01]} 6. e4 {[%clk 0:02:59]}  g6 {[%clk 0:03:01]} 7. Nf3 {[%clk 0:02:57]}  a6 {[%clk 0:02:59]} 8. a4 {[%clk 0:02:57]}  Bg4 {[%clk 0:03:00]} 9. Be2 {[%clk 0:02:54]}  Bxf3 {[%clk 0:02:59]} 10. Bxf3 {[%clk 0:02:54]}  Bg7 {[%clk 0:02:59]} 11. O-O {[%clk 0:02:38]}  Nbd7 {[%clk 0:02:56]} 12. Be2 {[%clk 0:02:37]}  O-O {[%clk 0:02:55]} 13. Be3 {[%clk 0:02:33]}  Re8 {[%clk 0:02:55]} 14. f3 {[%clk 0:02:32]}  h5 {[%clk 0:02:45]} 15. Qd2 {[%clk 0:02:30]}  Rc8 {[%clk 0:02:41]} 16. Rfc1 {[%clk 0:02:24]}  Ne5 {[%clk 0:02:41]} 17. Rab1 {[%clk 0:02:21]}  h4 {[%clk 0:02:40]} 18. h3 {[%clk 0:02:10]}  Nh5 {[%clk 0:02:39]} 19. f4 {[%clk 0:02:08]}  Nd7 {[%clk 0:02:33]} 20. Bxh5 {[%clk 0:02:07]}  gxh5 {[%clk 0:02:33]} 21. e5 {[%clk 0:01:30]}  dxe5 {[%clk 0:02:31]} 22. fxe5 {[%clk 0:01:25]}  Nxe5 {[%clk 0:02:31]} 23. Bg5 {[%clk 0:01:23]}  Qd7 {[%clk 0:02:28]} 24. Rf1 {[%clk 0:01:14]}  Ng6 {[%clk 0:02:26]} 25. Qd1 {[%clk 0:01:05]}  Bd4+ {[%clk 0:02:14]} 26. Kh1 {[%clk 0:01:04]}  Re5 {[%clk 0:02:14]} 27. Bf6 {[%clk 0:00:52]}  Re3 {[%clk 0:02:09]} 28. Bxd4 {[%clk 0:00:48]}  cxd4 {[%clk 0:02:10]} 29. Qxd4 {[%clk 0:00:46]}  Rce8 {[%clk 0:02:10]} 30. Kg1 {[%clk 0:00:34]}  R8e5 {[%clk 0:02:09]} 31. d6 {[%clk 0:00:28]}  Nf8 {[%clk 0:01:20]} 32. Nd5 {[%clk 0:00:24]}  Rxd5 {[%clk 0:01:13]} 33. Qxd5 {[%clk 0:00:20]}  Rg3 {[%clk 0:01:13]} 34. Rbe1 {[%clk 0:00:18]}  Qxh3 {[%clk 0:01:08]} 35. Qxf7+ {[%clk 0:00:17]}  Kh8 {[%clk 0:01:08]} 36. Qxf8+ {[%clk 0:00:17]} 1-0


[Site "https://www.chess.com"]

[Event "Titled Tuesday Blitz April 18 Late 2023"]
[White "Kushko, Dmitriy"]
[Black "Suder, Jakub"]
[WhiteFideId "14162261"]
[BlackFideId "1195310"]
[WhiteElo "2230"]
[BlackElo "2287"]
[Result "0-1"]
[Round "05"]
[TimeControl "180+2"]
[Date "2023.04.18"]
[WhiteClock "0:00:11"]
[BlackClock "0:00:12"]

1. f4 {[%clk 0:03:00]}  d5 {[%clk 0:02:56]} 2. Nf3 {[%clk 0:03:01]}  Nf6 {[%clk 0:02:56]} 3. g3 {[%clk 0:03:01]}  c5 {[%clk 0:02:52]} 4. Bg2 {[%clk 0:03:01]}  Nc6 {[%clk 0:02:53]} 5. O-O {[%clk 0:03:02]}  g6 {[%clk 0:02:52]} 6. d3 {[%clk 0:03:02]}  Bg7 {[%clk 0:02:53]} 7. Qe1 {[%clk 0:03:02]}  O-O {[%clk 0:02:53]} 8. e4 {[%clk 0:03:02]}  dxe4 {[%clk 0:02:51]} 9. dxe4 {[%clk 0:03:03]}  Nd4 {[%clk 0:02:51]} 10. Nxd4 {[%clk 0:03:02]}  cxd4 {[%clk 0:02:51]} 11. e5 {[%clk 0:02:47]}  Nd5 {[%clk 0:02:42]} 12. Qf2 {[%clk 0:02:46]}  Ne3 {[%clk 0:02:27]} 13. Bxe3 {[%clk 0:02:43]}  dxe3 {[%clk 0:02:28]} 14. Qxe3 {[%clk 0:02:44]}  Qc7 {[%clk 0:02:28]} 15. Nc3 {[%clk 0:02:44]}  Be6 {[%clk 0:02:22]} 16. Rfd1 {[%clk 0:02:29]}  Rfd8 {[%clk 0:02:22]} 17. Rxd8+ {[%clk 0:02:03]}  Rxd8 {[%clk 0:02:22]} 18. Qxa7 {[%clk 0:02:04]}  Rd2 {[%clk 0:02:17]} 19. Rc1 {[%clk 0:01:35]}  Bf5 {[%clk 0:01:41]} 20. Qe3 {[%clk 0:01:07]}  Rxc2 {[%clk 0:01:39]} 21. Rxc2 {[%clk 0:01:07]}  Bxc2 {[%clk 0:01:40]} 22. Nd5 {[%clk 0:01:03]}  Qa5 {[%clk 0:01:22]} 23. Qc3 {[%clk 0:00:55]}  Qxc3 {[%clk 0:01:17]} 24. Nxc3 {[%clk 0:00:56]}  f6 {[%clk 0:01:03]} 25. exf6 {[%clk 0:00:54]}  Bxf6 {[%clk 0:01:03]} 26. Bxb7 {[%clk 0:00:54]}  Bd4+ {[%clk 0:01:01]} 27. Kg2 {[%clk 0:00:54]}  Kg7 {[%clk 0:01:01]} 28. Kf3 {[%clk 0:00:51]}  Bd3 {[%clk 0:00:56]} 29. Be4 {[%clk 0:00:47]}  Bc4 {[%clk 0:00:55]} 30. a3 {[%clk 0:00:41]}  Kf6 {[%clk 0:00:51]} 31. h4 {[%clk 0:00:36]}  e5 {[%clk 0:00:50]} 32. fxe5+ {[%clk 0:00:34]}  Kxe5 {[%clk 0:00:51]} 33. Bc2 {[%clk 0:00:33]}  Bf7 {[%clk 0:00:43]} 34. Nd1 {[%clk 0:00:29]}  h6 {[%clk 0:00:41]} 35. Ne3 {[%clk 0:00:26]}  g5 {[%clk 0:00:35]} 36. hxg5 {[%clk 0:00:25]}  hxg5 {[%clk 0:00:36]} 37. b4 {[%clk 0:00:22]}  Bh5+ {[%clk 0:00:29]} 38. g4 {[%clk 0:00:20]}  Be8 {[%clk 0:00:29]} 39. Bd3 {[%clk 0:00:14]}  Bc6+ {[%clk 0:00:27]} 40. Ke2 {[%clk 0:00:14]}  Kf4 {[%clk 0:00:24]} 41. Nc2 {[%clk 0:00:12]}  Bb6 {[%clk 0:00:17]} 42. b5 {[%clk 0:00:13]}  Bf3+ {[%clk 0:00:17]} 43. Kd2 {[%clk 0:00:13]}  Bxg4 {[%clk 0:00:17]} 44. a4 {[%clk 0:00:13]}  Ba5+ {[%clk 0:00:16]} 45. Kc1 {[%clk 0:00:11]}  Bd7 {[%clk 0:00:16]} 46. Bc4 {[%clk 0:00:08]}  g4 {[%clk 0:00:15]} 47. Bd5 {[%clk 0:00:09]}  g3 {[%clk 0:00:14]} 48. Kb2 {[%clk 0:00:09]}  Bf5 {[%clk 0:00:12]} 49. Na3 {[%clk 0:00:08]}  Be4 {[%clk 0:00:12]} 50. Bxe4 {[%clk 0:00:07]}  Kxe4 {[%clk 0:00:13]} 51. Nc4 {[%clk 0:00:07]}  g2 {[%clk 0:00:12]} 52. Nxa5 {[%clk 0:00:07]}  g1=Q {[%clk 0:00:12]} 53. Nb3 {[%clk 0:00:08]}  Qb6 {[%clk 0:00:11]} 54. Ka3 {[%clk 0:00:08]}  Kd5 {[%clk 0:00:09]} 55. Kb4 {[%clk 0:00:08]}  Qd6+ {[%clk 0:00:10]} 56. Kc3 {[%clk 0:00:07]}  Qc7+ {[%clk 0:00:08]} 57. Kb4 {[%clk 0:00:07]}  Qc4+ {[%clk 0:00:08]} 58. Ka3 {[%clk 0:00:07]}  Kd6 {[%clk 0:00:07]} 59. Na5 {[%clk 0:00:05]}  Qc3+ {[%clk 0:00:07]} 60. Nb3 {[%clk 0:00:06]}  Kc7 {[%clk 0:00:07]} 61. a5 {[%clk 0:00:06]}  Kb7 {[%clk 0:00:07]} 62. Ka4 {[%clk 0:00:06]}  Qc4+ {[%clk 0:00:07]} 63. Ka3 {[%clk 0:00:07]}  Qxb5 {[%clk 0:00:08]} 64. Kb2 {[%clk 0:00:07]}  Qb4 {[%clk 0:00:08]} 65. Kc2 {[%clk 0:00:06]}  Ka6 {[%clk 0:00:08]} 66. Kb2 {[%clk 0:00:06]}  Kb5 {[%clk 0:00:09]} 67. Kc2 {[%clk 0:00:07]}  Kc4 {[%clk 0:00:09]} 68. Nd2+ {[%clk 0:00:07]}  Kd5 {[%clk 0:00:10]} 69. Nb3 {[%clk 0:00:07]}  Qc4+ {[%clk 0:00:10]} 70. Kb2 {[%clk 0:00:07]}  Qb4 {[%clk 0:00:11]} 71. Kc2 {[%clk 0:00:06]}  Qa3 {[%clk 0:00:11]} 72. Kc3 {[%clk 0:00:07]}  Kc6 {[%clk 0:00:11]} 73. Kc4 {[%clk 0:00:07]}  Qa4+ {[%clk 0:00:11]} 74. Kc3 {[%clk 0:00:07]}  Kb5 {[%clk 0:00:11]} 75. Kb2 {[%clk 0:00:06]}  Qb4 {[%clk 0:00:11]} 76. Kc2 {[%clk 0:00:06]}  Ka4 {[%clk 0:00:11]} 77. Nd2 {[%clk 0:00:06]}  Kxa5 {[%clk 0:00:11]} 78. Nb3+ {[%clk 0:00:06]}  Kb5 {[%clk 0:00:11]} 79. Nd2 {[%clk 0:00:07]}  Kc6 {[%clk 0:00:11]} 80. Nb1 {[%clk 0:00:08]}  Kd5 {[%clk 0:00:11]} 81. Nc3+ {[%clk 0:00:09]}  Kc4 {[%clk 0:00:12]} 82. Nd1 {[%clk 0:00:09]}  Qb3+ {[%clk 0:00:12]} 83. Kd2 {[%clk 0:00:10]}  Qa2+ {[%clk 0:00:12]} 84. Ke3 {[%clk 0:00:10]}  Qc2 {[%clk 0:00:12]} 85. Nf2 {[%clk 0:00:10]}  Qc3+ {[%clk 0:00:12]} 86. Ke4 {[%clk 0:00:10]}  Qd4+ {[%clk 0:00:12]} 87. Kf3 {[%clk 0:00:10]}  Kd5 {[%clk 0:00:12]} 88. Nh3 {[%clk 0:00:10]}  Qe4+ {[%clk 0:00:12]} 89. Kg3 {[%clk 0:00:10]}  Ke5 {[%clk 0:00:13]} 90. Nf2 {[%clk 0:00:10]}  Qf4+ {[%clk 0:00:13]} 91. Kg2 {[%clk 0:00:10]}  Kf5 {[%clk 0:00:13]} 92. Nh3 {[%clk 0:00:11]}  Qe3 {[%clk 0:00:12]} 93. Kh2 {[%clk 0:00:12]}  Kg4 {[%clk 0:00:12]} 94. Ng1 {[%clk 0:00:12]}  Qf2+ {[%clk 0:00:12]} 95. Kh1 {[%clk 0:00:12]}  Qd2 {[%clk 0:00:12]} 96. Nh3 {[%clk 0:00:11]}  Kxh3 {[%clk 0:00:12]} 0-1


[Site "https://www.chess.com"]

[Event "Titled Tuesday Blitz April 18 Late 2023"]
[White "Ozates, Tuna"]
[Black "Holt, Conrad"]
[WhiteFideId "6354521"]
[BlackFideId "2034387"]
[WhiteElo "2151"]
[BlackElo "2592"]
[Result "0-1"]
[Round "05"]
[TimeControl "180+2"]
[Date "2023.04.18"]
[WhiteClock "0:00:08"]
[BlackClock "0:00:35"]

1. e4 {[%clk 0:02:53]}  e6 {[%clk 0:03:00]} 2. d4 {[%clk 0:02:53]}  d5 {[%clk 0:03:00]} 3. exd5 {[%clk 0:02:54]}  exd5 {[%clk 0:03:00]} 4. Bd3 {[%clk 0:02:55]}  Nc6 {[%clk 0:03:00]} 5. c3 {[%clk 0:02:54]}  Bd6 {[%clk 0:03:00]} 6. Qf3 {[%clk 0:02:54]}  Nce7 {[%clk 0:02:54]} 7. Bf4 {[%clk 0:02:53]}  Bxf4 {[%clk 0:02:50]} 8. Qxf4 {[%clk 0:02:53]}  Nf6 {[%clk 0:02:50]} 9. Nf3 {[%clk 0:02:51]}  O-O {[%clk 0:02:48]} 10. O-O {[%clk 0:02:51]}  Ng6 {[%clk 0:02:47]} 11. Qd2 {[%clk 0:02:29]}  Ne4 {[%clk 0:02:42]} 12. Qc2 {[%clk 0:02:28]}  Re8 {[%clk 0:02:31]} 13. Nbd2 {[%clk 0:02:09]}  Bg4 {[%clk 0:02:28]} 14. h3 {[%clk 0:02:07]}  Nxd2 {[%clk 0:02:14]} 15. Nxd2 {[%clk 0:02:03]}  Bxh3 {[%clk 0:02:14]} 16. Bxg6 {[%clk 0:01:00]}  Qg5 {[%clk 0:02:12]} 17. Bxh7+ {[%clk 0:01:00]}  Kh8 {[%clk 0:02:11]} 18. g3 {[%clk 0:00:58]}  Bxf1 {[%clk 0:02:09]} 19. Nxf1 {[%clk 0:00:55]}  g6 {[%clk 0:02:07]} 20. Bxg6 {[%clk 0:00:53]}  fxg6 {[%clk 0:02:04]} 21. Qd3 {[%clk 0:00:47]}  Re7 {[%clk 0:01:59]} 22. Ne3 {[%clk 0:00:46]}  Rf8 {[%clk 0:01:55]} 23. Kg2 {[%clk 0:00:43]}  Qh5 {[%clk 0:01:32]} 24. Rh1 {[%clk 0:00:33]}  Rxf2+ {[%clk 0:01:32]} 25. Kg1 {[%clk 0:00:34]}  Rf3 {[%clk 0:01:18]} 26. Rxh5+ {[%clk 0:00:14]}  gxh5 {[%clk 0:01:18]} 27. Qg6 {[%clk 0:00:12]}  Rfxe3 {[%clk 0:01:10]} 28. Qxh5+ {[%clk 0:00:12]}  Kg7 {[%clk 0:01:09]} 29. Qg5+ {[%clk 0:00:12]}  Kf8 {[%clk 0:01:06]} 30. Qf5+ {[%clk 0:00:12]}  Ke8 {[%clk 0:01:05]} 31. Qc8+ {[%clk 0:00:12]}  Kf7 {[%clk 0:01:06]} 32. Qf5+ {[%clk 0:00:13]}  Kg8 {[%clk 0:01:01]} 33. Qg6+ {[%clk 0:00:12]}  Rg7 {[%clk 0:00:59]} 34. Qf5 {[%clk 0:00:12]}  Rexg3+ {[%clk 0:00:53]} 35. Kh2 {[%clk 0:00:12]}  R3g5 {[%clk 0:00:49]} 36. Qc8+ {[%clk 0:00:11]}  Kh7 {[%clk 0:00:50]} 37. Qh3+ {[%clk 0:00:11]}  Kg6 {[%clk 0:00:50]} 38. Qe6+ {[%clk 0:00:11]}  Kh7 {[%clk 0:00:45]} 39. Qh3+ {[%clk 0:00:12]}  Kg8 {[%clk 0:00:46]} 40. Qc8+ {[%clk 0:00:13]}  Kf7 {[%clk 0:00:45]} 41. Qxc7+ {[%clk 0:00:12]}  Ke6 {[%clk 0:00:43]} 42. Qc8+ {[%clk 0:00:12]}  Kf6 {[%clk 0:00:42]} 43. Qd8+ {[%clk 0:00:12]}  Kg6 {[%clk 0:00:36]} 44. Qd6+ {[%clk 0:00:08]}  Kh7 {[%clk 0:00:35]} 0-1


[Site "https://www.chess.com"]

[Event "Titled Tuesday Blitz April 18 Late 2023"]
[White "Klenburg, Michael"]
[Black "Ashraf, Artin"]
[WhiteFideId "14102072"]
[BlackFideId "22514805"]
[WhiteElo "2396"]
[BlackElo "2188"]
[Result "1-0"]
[Round "05"]
[TimeControl "180+2"]
[Date "2023.04.18"]
[WhiteClock "0:00:26"]
[BlackClock "0:00:01"]

1. e4 {[%clk 0:02:56]}  e5 {[%clk 0:02:59]} 2. Nf3 {[%clk 0:02:54]}  Nc6 {[%clk 0:03:00]} 3. Bb5 {[%clk 0:02:53]}  Nge7 {[%clk 0:02:54]} 4. O-O {[%clk 0:02:51]}  a6 {[%clk 0:02:53]} 5. Ba4 {[%clk 0:02:50]}  g6 {[%clk 0:02:52]} 6. d4 {[%clk 0:02:48]}  b5 {[%clk 0:02:43]} 7. Bb3 {[%clk 0:02:46]}  exd4 {[%clk 0:02:44]} 8. Ng5 {[%clk 0:02:29]}  d5 {[%clk 0:00:33]} 9. exd5 {[%clk 0:02:25]}  h6 {[%clk 0:00:33]} 10. Nxf7 {[%clk 0:02:17]}  Kxf7 {[%clk 0:00:31]} 11. dxc6+ {[%clk 0:02:16]}  Kg7 {[%clk 0:00:29]} 12. Qf3 {[%clk 0:02:11]}  Nf5 {[%clk 0:00:20]} 13. Bf4 {[%clk 0:02:08]}  Bd6 {[%clk 0:00:17]} 14. Nd2 {[%clk 0:02:07]}  Rf8 {[%clk 0:00:16]} 15. Bxd6 {[%clk 0:01:36]}  Qxd6 {[%clk 0:00:17]} 16. Qd5 {[%clk 0:01:36]}  Qf4 {[%clk 0:00:05]} 17. Nf3 {[%clk 0:01:33]}  a5 {[%clk 0:00:04]} 18. a4 {[%clk 0:01:27]}  b4 {[%clk 0:00:03]} 19. Rfe1 {[%clk 0:01:14]}  Ba6 {[%clk 0:00:03]} 20. Qe5+ {[%clk 0:01:07]}  Qxe5 {[%clk 0:00:03]} 21. Rxe5 {[%clk 0:01:06]}  Rae8 {[%clk 0:00:02]} 22. Rae1 {[%clk 0:01:06]}  Rxe5 {[%clk 0:00:03]} 23. Rxe5 {[%clk 0:01:06]}  d3 {[%clk 0:00:03]} 24. cxd3 {[%clk 0:01:04]}  Bxd3 {[%clk 0:00:03]} 25. Rxa5 {[%clk 0:00:58]}  Be4 {[%clk 0:00:04]} 26. Ra7 {[%clk 0:00:55]}  Bxf3 {[%clk 0:00:02]} 27. Rxc7+ {[%clk 0:00:52]}  Kf6 {[%clk 0:00:02]} 28. gxf3 {[%clk 0:00:52]}  Nd4 {[%clk 0:00:03]} 29. Bd5 {[%clk 0:00:51]}  Rd8 {[%clk 0:00:03]} 30. Rd7 {[%clk 0:00:50]}  Rxd7 {[%clk 0:00:02]} 31. cxd7 {[%clk 0:00:50]}  Ke7 {[%clk 0:00:03]} 32. Be4 {[%clk 0:00:37]}  g5 {[%clk 0:00:02]} 33. Kg2 {[%clk 0:00:37]}  Kxd7 {[%clk 0:00:02]} 34. Kg3 {[%clk 0:00:37]}  Ne2+ {[%clk 0:00:02]} 35. Kg4 {[%clk 0:00:37]}  Nf4 {[%clk 0:00:03]} 36. Kf5 {[%clk 0:00:37]}  Nh3 {[%clk 0:00:03]} 37. Kg6 {[%clk 0:00:36]}  Nxf2 {[%clk 0:00:03]} 38. Kxh6 {[%clk 0:00:36]}  g4 {[%clk 0:00:04]} 39. Kg5 {[%clk 0:00:34]}  gxf3 {[%clk 0:00:03]} 40. Bxf3 {[%clk 0:00:34]}  Nd3 {[%clk 0:00:03]} 41. b3 {[%clk 0:00:32]}  Nc5 {[%clk 0:00:03]} 42. Bd1 {[%clk 0:00:31]}  Kd6 {[%clk 0:00:03]} 43. h4 {[%clk 0:00:31]}  Ke5 {[%clk 0:00:04]} 44. h5 {[%clk 0:00:31]}  Ne6+ {[%clk 0:00:05]} 45. Kg6 {[%clk 0:00:29]}  Nf8+ {[%clk 0:00:04]} 46. Kf7 {[%clk 0:00:27]}  Nh7 {[%clk 0:00:03]} 47. Kg7 {[%clk 0:00:26]}  Ng5 {[%clk 0:00:02]} 48. h6 {[%clk 0:00:26]}  Kd4 {[%clk 0:00:01]} 49. h7 {[%clk 0:00:26]} 1-0


[Site "https://www.chess.com"]